fUSD/lending_fUSD_20241107
["ID","MTS","AMOUNT","RATE_DAILY","PERIOD"]
[341572867,1731005472073,-500.0,0.00028764,2]
[341572868,1731005472082,-500.0,0.00028764,2]
[341572869,1731005472091,-500.0,0.00028764,2]
[341572870,1731005472120,-526.91,0.00028764,2]
[341572871,1731005472129,-4276.72,0.00028764,2]
[341572872,1731005472138,-677.56,0.00028764,2]
[341572873,1731005472147,-500.0,0.00028764,2]
[341572874,1731005472156,-2154.23,0.00028764,2]
[341572875,1731005472166,-500.0,0.00028764,2]
[341572876,1731005472176,-500.0,0.00028764,2]
[341572877,1731005472186,-1485.0,0.00028764,2]
[341572878,1731005472196,-500.0,0.00028764,2]
[341572879,1731005472206,-562.24,0.00028764,2]
[341572880,1731005472216,-500.0,0.00028764,2]
[341572881,1731005472226,-2336.8,0.00028764,2]
[341572882,1731005472237,-2009.69,0.00028764,2]
[341572883,1731005472252,-1026.08,0.00028764,2]
[341572884,1731005472262,-887.45,0.00028764,2]
[341572885,1731005472271,-3595.56,0.00028764,2]
[341572886,1731005472283,-1616.18,0.00028764,2]
[341572887,1731005472293,-500.0,0.00028764,2]
[341572888,1731005472304,-500.0,0.00028764,2]
[341572889,1731005472314,-575.52,0.00028764,2]
[341572890,1731005472325,-1245.31,0.00028764,2]
[341572891,1731005472336,-3430.71,0.00028764,2]
[341572892,1731005472346,-508.17,0.00028764,2]
[341572893,1731005472358,-500.0,0.00028764,2]
[341572894,1731005472369,-927.65,0.00028764,2]
[341572895,1731005472379,-1257.88,0.00028764,2]
[341572896,1731005472390,-1242.44,0.00028764,2]
[341572897,1731005472400,-200.0,0.00028764,2]
[341572898,1731005472411,-9924.2,0.00028764,2]
[341572899,1731005472422,-514.48,0.00028764,2]
[341572900,1731005472433,-1994.21,0.00028764,2]
[341572901,1731005472443,-500.0,0.00028764,2]
[341572902,1731005472454,-500.000001,0.00028764,2]
[341572903,1731005472465,-1946.0,0.00028764,2]
[341572904,1731005472476,-1206.57,0.00028764,2]
[341572905,1731005472486,-1641.91,0.00028764,2]
[341572906,1731005472496,-692.5,0.00028764,2]
[341572907,1731005472507,-500.0,0.00028764,2]
[341572908,1731005472517,-500.0,0.00028764,2]
[341572909,1731005472528,-500.0,0.00028764,2]
[341572910,1731005472538,-769.86,0.00028764,2]
[341572911,1731005472548,-500.0,0.00028764,2]
[341572912,1731005472558,-453.85389478,0.00028765,2]
[341572913,1731005472568,-500.0,0.00028765,2]
[341572914,1731005472578,-502.31451928,0.00028765,2]
[341572915,1731005472588,-517.55149977,0.00028765,2]
[341572916,1731005472605,-502.72955793,0.00028765,2]
[341572917,1731005472623,-2000.0,0.00028765,2]
[341572918,1731005472633,-200.0,0.00028765,2]
[341572919,1731005472643,-500.0,0.00028765,2]
[341572920,1731005472653,-524.04,0.00028765,2]
[341572921,1731005472663,-500.0,0.00028765,2]
[341572922,1731005472673,-500.0,0.00028765,2]
[341572923,1731005472683,-628.2,0.00028765,2]
[341572924,1731005472693,-500.0,0.00028765,2]
[341572925,1731005472703,-500.0,0.00028765,2]
[341572926,1731005472714,-500.0,0.00028765,2]
[341572927,1731005472724,-500.0,0.00028765,2]
[341572928,1731005472733,-682.97,0.00028765,2]
[341572929,1731005472744,-500.0,0.00028765,2]
[341572930,1731005472754,-500.0,0.00028765,2]
[341572931,1731005472765,-500.0,0.00028765,2]
[341572932,1731005472775,-600.57267184,0.00028765,2]
[341572933,1731005472786,-361.00316187,0.00028765,2]
[341572934,1731005472796,-892.16,0.00028765,2]
[341572935,1731005472806,-506.94517912,0.00028765,2]
[341572936,1731005472816,-500.0,0.00028765,2]
[341572937,1731005472826,-500.0,0.00028765,2]
[341572938,1731005472836,-500.0,0.00028765,2]
[341572939,1731005472846,-510.32389642,0.00028765,2]
[341572940,1731005472856,-500.0,0.00028765,2]
[341572941,1731005472867,-500.0,0.00028765,2]
[341572942,1731005472877,-500.0,0.00028765,2]
[341572943,1731005472888,-601.08,0.00028765,2]
[341572944,1731005472898,-500.0,0.00028765,2]
[341572945,1731005472908,-500.0,0.00028765,2]
[341572946,1731005472919,-500.0,0.00028765,2]
[341572947,1731005472929,-500.0,0.00028765,2]
[341572948,1731005472939,-500.0,0.00028765,2]
[341572949,1731005472950,-500.0,0.00028765,2]
[341572950,1731005472961,-500.0,0.00028765,2]
[341572951,1731005472971,-500.0,0.00028765,2]
[341572952,1731005472981,-514.18512447,0.00028765,2]
[341572953,1731005472991,-500.0,0.00028765,2]
[341572954,1731005473000,-345.9946732,0.00028765,2]
[341572955,1731005473010,-500.0,0.00028765,2]
[341572956,1731005473020,-500.0,0.00028765,2]
[341572957,1731005473031,-500.0,0.00028765,2]
[341572958,1731005473041,-500.0,0.00028765,2]
[341572959,1731005473051,-500.0,0.00028765,2]
[341572960,1731005473061,-639.86,0.00028765,2]
[341572961,1731005473071,-500.0,0.00028765,2]
[341572962,1731005473081,-1540.13,0.00028765,2]
[341572963,1731005473091,-500.0,0.00028765,2]
[341572964,1731005473102,-500.0,0.00028765,2]
[341572965,1731005473130,-582.41,0.00028765,2]
[341572966,1731005473140,-500.0,0.00028765,2]
[341572967,1731005473150,-500.0,0.00028765,2]
[341572968,1731005473160,-500.0,0.00028765,2]
[341572969,1731005473171,-500.0,0.00028765,2]
[341572970,1731005473181,-500.0,0.00028765,2]
[341572971,1731005473191,-500.0,0.00028765,2]
[341572972,1731005473201,-500.0,0.00028765,2]
[341572973,1731005473211,-500.0,0.00028765,2]
[341572974,1731005473221,-500.0,0.00028765,2]
[341572975,1731005473231,-316.14789953,0.00028765,2]
[341572976,1731005473242,-500.0,0.00028765,2]
[341572977,1731005473253,-512.65658884,0.00028765,2]
[341572978,1731005473263,-500.0,0.00028765,2]
[341572979,1731005473275,-500.0,0.00028765,2]
[341572980,1731005473285,-500.0,0.00028765,2]
[341572981,1731005473296,-500.0,0.00028765,2]
[341572982,1731005473306,-500.0,0.00028765,2]
[341572983,1731005473316,-500.0,0.00028765,2]
[341572984,1731005473328,-500.0,0.00028765,2]
[341572985,1731005473339,-500.0,0.00028765,2]
[341572986,1731005473349,-500.0,0.00028765,2]
[341572987,1731005473360,-500.0,0.00028765,2]
[341572988,1731005473370,-516.69391214,0.00028765,2]
[341572989,1731005473380,-500.0,0.00028765,2]
[341572990,1731005473390,-500.0,0.00028765,2]
[341572991,1731005473400,-669.8,0.00028765,2]
[341572992,1731005473410,-500.0,0.00028765,2]
[341572993,1731005473420,-517.39722237,0.00028765,2]
[341572994,1731005473430,-500.0,0.00028765,2]
[341572995,1731005473441,-500.0,0.00028765,2]
[341572996,1731005473453,-500.0,0.00028765,2]
[341572997,1731005473463,-500.0,0.00028765,2]
[341572998,1731005473474,-768.32,0.00028765,2]
[341572999,1731005473485,-500.0,0.00028765,2]
[341573000,1731005473495,-385.58688595,0.00028765,2]
[341573001,1731005473505,-500.0,0.00028765,2]
[341573002,1731005473516,-828.57,0.00028765,2]
[341573003,1731005473527,-570.22,0.00028765,2]
[341573004,1731005473538,-500.0,0.00028765,2]
[341573005,1731005473548,-650.71,0.00028765,2]
[341573006,1731005473559,-500.0,0.00028765,2]
[341573007,1731005473569,-500.0,0.00028765,2]
[341573008,1731005473579,-500.0,0.00028765,2]
[341573009,1731005473590,-500.0,0.00028765,2]
[341573010,1731005473600,-500.0,0.00028765,2]
[341573011,1731005473610,-500.0,0.00028765,2]
[341573012,1731005473620,-500.0,0.00028765,2]
[341573013,1731005473635,-500.0,0.00028765,2]
[341573014,1731005473651,-527.4039793,0.00028765,2]
[341573015,1731005473660,-500.0,0.00028765,2]
[341573016,1731005473670,-291.25959555,0.00028765,2]
[341573017,1731005473680,-500.0,0.00028765,2]
[341573018,1731005473690,-500.0,0.00028765,2]
[341573019,1731005473700,-531.73287879,0.00028765,2]
[341573020,1731005473710,-1733.9,0.00028765,2]
[341573021,1731005473720,-490.086577,0.00028765,2]
[341573022,1731005473729,-511.26149828,0.00028765,2]
[341573023,1731005473739,-1638.5,0.00028765,2]
[341573024,1731005473749,-500.0,0.00028765,2]
[341573025,1731005473759,-1855.35,0.00028765,2]
[341573026,1731005473770,-509.27,0.00028765,2]
[341573027,1731005473780,-500.0,0.00028765,2]
[341573028,1731005473789,-930.12,0.00028765,2]
[341573029,1731005473800,-500.0,0.00028765,2]
[341573030,1731005473810,-633.07483599,0.00028765,2]
[341573031,1731005473820,-500.0,0.00028765,2]
[341573032,1731005473830,-500.0,0.00028765,2]
[341573033,1731005473841,-217.0384089,0.00028765,2]
[341573034,1731005473850,-500.0,0.00028765,2]
[341573035,1731005473860,-911.47,0.00028765,2]
[341573036,1731005473871,-1629.74,0.00028765,2]
[341573037,1731005473880,-578.59,0.00028765,2]
[341573038,1731005473890,-500.0,0.00028765,2]
[341573039,1731005473900,-1433.46,0.00028765,2]
[341573040,1731005473910,-500.0,0.00028765,2]
[341573041,1731005473920,-500.0,0.00028765,2]
[341573042,1731005473930,-2481.61,0.00028765,2]
[341573043,1731005473940,-518.14,0.00028765,2]
[341573044,1731005473950,-1002.64,0.00028765,2]
[341573045,1731005473960,-1037.98,0.00028765,2]
[341573046,1731005473970,-500.0,0.00028765,2]
[341573047,1731005473980,-4139.66,0.00028765,2]
[341573048,1731005473990,-892.76,0.00028765,2]
[341573049,1731005473999,-502.81981694,0.00028765,2]
[341573050,1731005474009,-647.31,0.00028765,2]
[341573051,1731005474019,-1348.35,0.00028765,2]
[341573052,1731005474029,-500.0,0.00028765,2]
[341573053,1731005474039,-325.53607095,0.00028765,2]
[341573054,1731005474048,-500.0,0.00028765,2]
[341573055,1731005474059,-589.84,0.00028765,2]
[341573056,1731005474068,-1734.61,0.00028765,2]
[341573057,1731005474078,-500.0,0.00028765,2]
[341573058,1731005474088,-700.0,0.00028765,2]
[341573059,1731005474098,-500.0,0.00028765,2]
[341573060,1731005474109,-500.0,0.00028765,2]
[341573061,1731005474119,-500.0,0.00028765,2]
[341573062,1731005474133,-521.2,0.00028765,2]
[341573063,1731005474143,-500.0,0.00028765,2]
[341573064,1731005474159,-500.0,0.00028765,2]
[341573065,1731005474170,-500.0,0.00028765,2]
[341573066,1731005474180,-500.0,0.00028765,2]
[341573067,1731005474190,-1185.81,0.00028765,2]
[341573068,1731005474200,-500.0,0.00028765,2]
[341573069,1731005474210,-500.0,0.00028765,2]
[341573070,1731005474221,-500.0,0.00028765,2]
[341573071,1731005474231,-500.0,0.00028765,2]
[341573072,1731005474242,-904.95,0.00028765,2]
[341573073,1731005474254,-500.0,0.00028765,2]
[341573074,1731005474264,-1074.81,0.00028765,2]
[341573075,1731005474275,-500.0,0.00028765,2]
[341573076,1731005474285,-500.0,0.00028765,2]
[341573077,1731005474295,-500.0,0.00028765,2]
[341573078,1731005474306,-1215.48,0.00028765,2]
[341573079,1731005474317,-521.28015882,0.00028765,2]
[341573080,1731005474327,-500.0,0.00028765,2]
[341573081,1731005474337,-837.56,0.00028765,2]
[341573082,1731005474347,-500.0,0.00028765,2]
[341573083,1731005474357,-1493.93,0.00028765,2]
[341573084,1731005474369,-652.59,0.00028765,2]
[341573085,1731005474389,-500.0,0.00028765,2]
[341573086,1731005474399,-1134.06,0.00028765,2]
[341573087,1731005474636,-508.75388193,0.00028765,2]
[341573088,1731005474647,-892.46,0.00028765,2]
[341573089,1731005474657,-605.07343381,0.00028765,2]
[341573090,1731005474666,-500.0,0.00028765,2]
[341573091,1731005474676,-500.0,0.00028765,2]
[341573092,1731005474686,-500.0,0.00028765,2]
[341573093,1731005474695,-511.27,0.00028765,2]
[341573094,1731005474704,-739.93,0.00028765,2]
[341573095,1731005474714,-500.0,0.00028765,2]
[341573096,1731005474724,-1581.39,0.00028765,2]
[341573097,1731005474734,-500.0,0.00028765,2]
[341573098,1731005474743,-500.0,0.00028765,2]
[341573099,1731005474753,-956.92,0.00028765,2]
[341573100,1731005474763,-500.0,0.00028765,2]
[341573101,1731005474772,-500.0,0.00028765,2]
[341573102,1731005474782,-500.0,0.00028765,2]
[341573103,1731005474791,-701.56980714,0.00028765,15]
[341573104,1731005474801,-647.08479,0.00028765,7]
[341573105,1731005474811,-500.0,0.00028765,2]
[341573106,1731005474821,-605.61,0.00028765,2]
[341573107,1731005474831,-309.28780094,0.00028765,2]
[341573108,1731005474840,-922.75,0.00028765,2]
[341573109,1731005474850,-647.08479,0.00028765,7]
[341573110,1731005474860,-396.40282018,0.00028765,2]
[341573111,1731005474869,-500.0,0.00028765,2]
[341573112,1731005474882,-161.00418739,0.00028765,2]
[341573113,1731005474891,-1430.418167,0.00028765,7]
[341573114,1731005474901,-919.73,0.00028765,2]
[341573115,1731005474910,-500.0,0.00028765,2]
[341573116,1731005474919,-1751.48,0.00028765,2]
[341573117,1731005474929,-1430.418167,0.00028765,7]
[341573118,1731005474938,-503.97262585,0.00028765,2]
[341573119,1731005474947,-151.0,0.00028765,7]
[341573120,1731005474958,-973.17,0.00028765,2]
[341573121,1731005474967,-151.0,0.00028765,7]
[341573122,1731005474977,-510.51,0.00028765,2]
[341573123,1731005474986,-500.0,0.00028765,2]
[341573124,1731005474996,-967.16,0.00028765,2]
[341573125,1731005475005,-151.0,0.00028765,7]
[341573126,1731005475015,-500.0,0.00028765,2]
[341573127,1731005475025,-500.0,0.00028765,2]
[341573128,1731005475034,-500.0,0.00028765,2]
[341573129,1731005475044,-500.0,0.00028765,2]
[341573130,1731005475053,-151.0,0.00028765,7]
[341573131,1731005475063,-500.0,0.00028765,2]
[341573132,1731005475072,-1802.27,0.00028765,2]
[341573133,1731005475082,-1247.64,0.00028765,2]
[341573134,1731005475091,-500.0,0.00028765,2]
[341573135,1731005475101,-500.0,0.00028765,2]
[341573136,1731005475111,-1705.41,0.00028765,2]
[341573137,1731005475120,-500.0,0.00028765,2]
[341573138,1731005475136,-500.0,0.00028765,2]
[341573139,1731005475146,-884.38,0.00028765,2]
[341573140,1731005475156,-1976.45,0.00028765,2]
[341573141,1731005475166,-500.0,0.00028765,2]
[341573142,1731005475176,-838.0,0.00028765,2]
[341573143,1731005475185,-500.0,0.00028765,2]
[341573144,1731005475194,-503.31694672,0.00028765,2]
[341573145,1731005475204,-1439.59,0.00028765,2]
[341573146,1731005475214,-919.11,0.00028765,2]
[341573147,1731005475224,-500.0,0.00028765,2]
[341573148,1731005475237,-894.86254202,0.00028765,10]
[341573149,1731005475246,-151.0,0.00028765,7]
[341573150,1731005475256,-7086.954869,0.00028765,7]
[341573151,1731005475266,-500.0,0.00028765,2]
[341573152,1731005475276,-826.38,0.00028765,2]
[341573153,1731005475287,-151.0,0.00028765,7]
[341573154,1731005475297,-151.0,0.00028765,7]
[341573155,1731005475307,-7086.954869,0.00028765,7]
[341573156,1731005475316,-500.0,0.00028765,2]
[341573157,1731005475328,-500.0,0.00028765,2]
[341573158,1731005475338,-500.0,0.00028765,2]
[341573159,1731005475347,-518.35,0.00028765,2]
[341573160,1731005475357,-151.0,0.00028765,7]
[341573161,1731005475366,-500.0,0.00028765,2]
[341573162,1731005475378,-500.0,0.00028765,2]
[341573163,1731005475389,-151.0,0.00028765,7]
[341573164,1731005475399,-500.0,0.00028765,2]
[341573165,1731005475408,-1009.6,0.00028765,2]
[341573166,1731005475418,-1002.05,0.00028765,2]
[341573167,1731005475428,-2527.2,0.00028765,2]
[341573168,1731005475438,-1144.57,0.00028765,2]
[341573169,1731005475447,-500.0,0.00028765,2]
[341573170,1731005475457,-200.0,0.00028765,2]
[341573171,1731005475467,-1071.74,0.00028765,2]
[341573172,1731005475476,-500.0,0.00028765,2]
[341573173,1731005475486,-1188.09,0.00028765,2]
[341573174,1731005475495,-500.0,0.00028765,2]
[341573175,1731005475504,-500.0,0.00028765,2]
[341573176,1731005475514,-500.0,0.00028765,2]
[341573177,1731005475523,-500.0,0.00028765,2]
[341573178,1731005475533,-845.34,0.00028765,2]
[341573179,1731005475543,-578.54,0.00028765,2]
[341573180,1731005475552,-500.0,0.00028765,2]
[341573181,1731005475562,-500.0,0.00028765,2]
[341573182,1731005475571,-500.0,0.00028765,2]
[341573183,1731005475581,-500.0,0.00028765,2]
[341573184,1731005475592,-528.65,0.00028765,2]
[341573185,1731005475601,-1081.76,0.00028765,2]
[341573186,1731005475611,-151.0,0.00028765,7]
[341573187,1731005475620,-1104.64,0.00028765,2]
[341573188,1731005475631,-245.972545,0.00028765,7]
[341573189,1731005475640,-500.0,0.00028765,2]
[341573190,1731005475650,-151.0,0.00028765,7]
[341573191,1731005475660,-245.972545,0.00028765,7]
[341573192,1731005475669,-500.0,0.00028765,2]
[341573193,1731005475679,-500.0,0.00028765,2]
[341573194,1731005475689,-500.0,0.00028765,2]
[341573195,1731005475699,-1167.6,0.00028765,2]
[341573196,1731005475709,-529.22,0.00028765,2]
[341573197,1731005475719,-500.0,0.00028765,2]
[341573198,1731005475729,-500.0,0.00028765,2]
[341573199,1731005475740,-500.0,0.00028765,2]
[341573200,1731005475749,-1599.73,0.00028765,2]
[341573201,1731005475759,-514.2,0.00028765,2]
[341573202,1731005475769,-500.0,0.00028765,2]
[341573203,1731005475779,-500.0,0.00028765,2]
[341573204,1731005475788,-3373.99,0.00028765,2]
[341573205,1731005475798,-740.85,0.00028765,2]
[341573206,1731005475807,-500.0,0.00028765,2]
[341573207,1731005475817,-151.0,0.00028765,7]
[341573208,1731005475826,-1079.81,0.00028765,2]
[341573209,1731005475835,-500.0,0.00028765,2]
[341573210,1731005475845,-1468.77,0.00028765,2]
[341573211,1731005475854,-1540.59,0.00028765,2]
[341573212,1731005475864,-500.0,0.00028765,2]
[341573213,1731005475873,-500.0,0.00028765,2]
[341573214,1731005475885,-500.0,0.00028765,2]
[341573215,1731005475895,-1199.97,0.00028765,2]
[341573216,1731005475904,-580.59,0.00028765,2]
[341573217,1731005475913,-915.86,0.00028765,2]
[341573218,1731005475923,-500.0,0.00028765,2]
[341573219,1731005475932,-706.05,0.00028765,2]
[341573220,1731005475941,-500.0,0.00028765,2]
[341573221,1731005475951,-500.0,0.00028765,2]
[341573222,1731005475960,-1307.37,0.00028765,2]
[341573223,1731005475970,-2645.77,0.00028765,2]
[341573224,1731005475979,-151.0,0.00028765,7]
[341573225,1731005475989,-500.0,0.00028765,2]
[341573226,1731005475998,-151.0,0.00028765,7]
[341573227,1731005476007,-500.0,0.00028765,2]
[341573228,1731005476017,-500.0,0.00028765,2]
[341573229,1731005476027,-527.37405678,0.00028765,2]
[341573230,1731005476038,-209.707123,0.00028765,7]
[341573231,1731005476050,-1298.14,0.00028765,2]
[341573232,1731005476059,-500.0,0.00028765,2]
[341573233,1731005476070,-209.707123,0.00028765,7]
[341573234,1731005476079,-151.0,0.00028765,7]
[341573235,1731005476089,-500.0,0.00028765,2]
[341573236,1731005476099,-325.93462427,0.00028765,2]
[341573237,1731005476108,-500.0,0.00028765,2]
[341573238,1731005476118,-151.0,0.00028765,7]
[341573239,1731005476129,-500.0,0.00028765,2]
[341573240,1731005476139,-570.58,0.00028765,2]
[341573241,1731005476148,-2471.29,0.00028765,2]
[341573242,1731005476157,-1311.87,0.00028765,2]
[341573243,1731005476167,-500.0,0.00028765,2]
[341573244,1731005476176,-820.03,0.00028765,2]
[341573245,1731005476185,-540.26399768,0.00028765,2]
[341573246,1731005476195,-894.89,0.00028765,2]
[341573247,1731005476204,-500.0,0.00028765,2]
[341573248,1731005476213,-500.0,0.00028765,2]
[341573249,1731005476223,-500.0,0.00028765,2]
[341573250,1731005476233,-2081.12,0.00028765,2]
[341573251,1731005476244,-920.52,0.00028765,2]
[341573252,1731005476255,-500.0,0.00028765,2]
[341573253,1731005476264,-921.26,0.00028765,2]
[341573254,1731005476274,-903.72,0.00028765,2]
[341573255,1731005476284,-500.0,0.00028765,2]
[341573256,1731005476295,-663.16,0.00028765,2]
[341573257,1731005476304,-151.0,0.00028765,7]
[341573258,1731005476314,-1082.546191,0.00028765,7]
[341573259,1731005476326,-1075.23,0.00028765,2]
[341573260,1731005476335,-1606.01,0.00028765,2]
[341573261,1731005476345,-500.0,0.00028765,2]
[341573262,1731005476354,-1082.546191,0.00028765,7]
[341573263,1731005476364,-500.0,0.00028765,2]
[341573264,1731005476374,-500.0,0.00028765,2]
[341573265,1731005476387,-2000.0,0.00028765,2]
[341573266,1731005476396,-500.0,0.00028765,2]
[341573267,1731005476406,-500.0,0.00028765,2]
[341573268,1731005476415,-151.0,0.00028765,7]
[341573269,1731005476425,-500.0,0.00028765,2]
[341573270,1731005476435,-177.565306,0.00028765,7]
[341573271,1731005476446,-656.31,0.00028765,2]
[341573272,1731005476455,-933.57,0.00028765,2]
[341573273,1731005476465,-1316.03,0.00028765,2]
[341573274,1731005476474,-151.529039,0.00028765,7]
[341573275,1731005476483,-511.86,0.00028765,2]
[341573276,1731005476493,-2787.88,0.00028765,2]
[341573277,1731005476503,-1233.83,0.00028765,2]
[341573278,1731005476512,-500.0,0.00028765,2]
[341573279,1731005476521,-1649.02,0.00028765,2]
[341573280,1731005476531,-500.0,0.00028765,2]
[341573281,1731005476540,-1277.07,0.00028765,2]
[341573282,1731005476550,-500.0,0.00028765,2]
[341573283,1731005476559,-795.32,0.00028765,2]
[341573284,1731005476569,-500.0,0.00028765,2]
[341573285,1731005476579,-1053.58,0.00028765,2]
[341573286,1731005476589,-500.0,0.00028765,2]
[341573287,1731005476598,-514.71166988,0.00028765,2]
[341573288,1731005476607,-1483.3,0.00028765,2]
[341573289,1731005476616,-500.0,0.00028765,2]
[341573290,1731005476625,-504.90678028,0.00028765,2]
[341573291,1731005476636,-1139.35,0.00028765,2]
[341573292,1731005476645,-878.68849,0.00028765,2]
[341573293,1731005476655,-878.68849,0.00028765,2]
[341573294,1731005476664,-878.6885,0.00028765,2]
[341573295,1731005476673,-878.68849,0.00028765,2]
[341573296,1731005476682,-196.14967838,0.00028765,2]
[341573297,1731005476691,-1757.95,0.00028765,2]
[341573298,1731005476700,-158.372318,0.00028765,7]
[341573299,1731005476710,-722.47,0.00028765,2]
[341573300,1731005476719,-569.02,0.00028765,2]
[341573301,1731005476728,-500.0,0.00028765,2]
[341573302,1731005476737,-158.372318,0.00028765,7]
[341573303,1731005476747,-500.0,0.00028765,2]
[341573304,1731005476756,-500.0,0.00028765,2]
[341573305,1731005476766,-2079.68,0.00028765,2]
[341573306,1731005476775,-500.0,0.00028765,2]
[341573307,1731005476784,-500.0,0.00028765,2]
[341573308,1731005476793,-500.0,0.00028765,2]
[341573309,1731005476802,-522.60370874,0.00028765,2]
[341573310,1731005476812,-579.93511211,0.00028765,2]
[341573311,1731005476821,-500.0,0.00028765,2]
[341573312,1731005476830,-500.0,0.00028765,2]
[341573313,1731005476839,-621.46,0.00028765,2]
[341573314,1731005476848,-4585.15,0.00028765,2]
[341573315,1731005476858,-500.0,0.00028765,2]
[341573316,1731005476867,-500.0,0.00028765,2]
[341573317,1731005476879,-500.0,0.00028765,2]
[341573318,1731005476888,-705.61,0.00028765,2]
[341573319,1731005476897,-1632.43,0.00028765,2]
[341573320,1731005476906,-500.0,0.00028765,2]
[341573321,1731005476915,-2335.67,0.00028765,2]
[341573322,1731005476924,-500.0,0.00028765,2]
[341573323,1731005476933,-1245.31,0.00028765,2]
[341573324,1731005476942,-500.0,0.00028765,2]
[341573325,1731005476951,-737.75,0.00028765,2]
[341573326,1731005476960,-500.0,0.00028765,2]
[341573327,1731005476969,-990.76,0.00028765,2]
[341573328,1731005476978,-1489.7,0.00028765,2]
[341573329,1731005476988,-500.0,0.00028765,2]
[341573330,1731005476997,-746.59,0.00028765,2]
[341573331,1731005477006,-544.04081382,0.00028765,2]
[341573332,1731005477015,-500.0,0.00028765,2]
[341573333,1731005477024,-500.0,0.00028765,2]
[341573334,1731005477033,-2626.87,0.00028765,2]
[341573335,1731005477043,-500.0,0.00028765,2]
[341573336,1731005477052,-748.79,0.00028765,2]
[341573337,1731005477061,-500.0,0.00028765,2]
[341573338,1731005477071,-551.81,0.00028765,2]
[341573339,1731005477080,-1029.44,0.00028765,2]
[341573340,1731005477090,-500.0,0.00028765,7]
[341573341,1731005477099,-151.0,0.00028765,7]
[341573342,1731005477108,-500.0,0.00028765,2]
[341573343,1731005477118,-1187.0,0.00028765,2]
[341573344,1731005477129,-500.0,0.00028765,2]
[341573345,1731005477139,-500.0,0.00028765,2]
[341573346,1731005477148,-589.86,0.00028765,2]
[341573347,1731005477157,-2300.0,0.000288,10]
[341573348,1731005477166,-3921.07,0.00028817,2]
[341573349,1731005477175,-525.08,0.00028817,2]
[341573350,1731005477185,-2537.9,0.00028817,2]
[341573351,1731005477194,-1533.51,0.00028817,2]
[341573352,1731005477204,-500.0,0.00028817,2]
[341573353,1731005477213,-965.15,0.00028817,2]
[341573354,1731005477223,-681.92,0.00028817,2]
[341573355,1731005477234,-155.611207,0.00028817,7]
[341573356,1731005477243,-2552.45,0.00028817,2]
[341573357,1731005477252,-301.85229,0.00028817,7]
[341573358,1731005477262,-4225.14,0.00028817,2]
[341573359,1731005477271,-151.0,0.00028817,7]
[341573360,1731005477289,-529.02854537,0.00028817,2]
[341573361,1731005477311,-982.85,0.00028817,2]
[341573362,1731005477333,-982.63,0.00028817,2]
[341573363,1731005477355,-849.45,0.00028818,2]
[341573364,1731005477378,-500.0,0.00028818,2]
[341573365,1731005477399,-500.0,0.00028818,2]
[341573366,1731005477421,-1288.89,0.00028818,2]